Cogmind - Beta 10.2 --- EXPLORER MODE // 2021.09.12 @ 23:12:18 Player: maroooon Result: Destroyed by L-31 Rogue with Katana Performance ------------- Evolutions (2) 1000 Regions Visited (3) 600 Robots Destroyed (17) 85 Value Destroyed (542) 542 Prototype IDs (5) 100 Alien Tech Used (0) 0 Bonus (0) 0 TOTAL SCORE: 2327 Bonus ------- None Cogmind --------- Core Integrity 0/550 Matter 300/300 Energy 100/100 System Corruption 1% Temperature Cool (0) Movement Core (300) Ox5 Location -8/Materials Parts ------- > --- POWER (1) -------- (None) > --- PROPULSION (4) --- (None) > --- UTILITY (5) ------ Large Storage Unit Advanced Visual Processing Unit > --- WEAPON (2) ------- (None) > --- INVENTORY (10) --- Advanced Visual Processing Unit Improved Signal Interpreter Maneuvering Thrusters Maneuvering Thrusters Maneuvering Thrusters Maneuvering Thrusters Mining Laser Peak State ------------ > --- POWER ------------ Improved Ion Engine > --- PROPULSION ------- Improved Hover Unit Improved Hover Unit Improved Hover Unit Improved Hover Unit > --- UTILITY ---------- Advanced Heat Sink Large Storage Unit Structural Scanner Advanced Visual Processing Unit Sensor Array > --- WEAPON ----------- Beam Rifle > --- INVENTORY -------- Improved Hover Unit Heat Sink Advanced Visual Processing Unit Improved Signal Interpreter Maneuvering Thrusters Maneuvering Thrusters Maneuvering Thrusters Maneuvering Thrusters Mining Laser [Rating: 25] Favorites ----------- Power Improved Ion Engine Engine Improved Ion Engine Power Core Nuclear Core Propulsion Aluminum Leg Leg Aluminum Leg Hover Unit Improved Hover Unit Utility Large Storage Unit Device Structural Scanner Storage Large Storage Unit Processor Advanced Visual Processing Unit Protection Power Shielding Weapon Beam Rifle Energy Gun Beam Rifle Energy Cannon Advanced Beam Cannon Build | -11 -10 -9 -8 ------- Run | Scr Mat Mat Mat Slots Evolved 5 | . 1 2 2 Power . | . . . . Propulsion 2 | . 1 1 . Utility 3 | . . 1 2 Weapon . | . . . . Parts Attached 46 | 8 6 26 6 Power 6 | 1 1 3 1 Engine 5 | 1 1 3 . Core 1 | . . . 1 Reactor . | . . . . Propulsion 16 | 2 . 13 1 Treads . | . . . . Leg 10 | 2 . 8 . Wheel . | . . . . Hover 6 | . . 5 1 Flight . | . . . . Utility 14 | 3 2 5 4 Device 6 | 1 . 1 4 Storage 4 | 1 2 1 . Processor 3 | . . 3 . Hackware . | . . . . Protection 1 | 1 . . . Artifact . | . . . . Weapon 10 | 2 3 5 . Energy Gun 9 | 2 3 4 . Energy Cannon 1 | . . 1 . Ballistic Gun . | . . . . Ballistic Cannon . | . . . . Launcher . | . . . . Special Weapon . | . . . . Impact Weapon . | . . . . Slashing Weapon . | . . . . Piercing Weapon . | . . . . Special Melee Weapon . | . . . . Unidentified Prototypes . | . . . . Parts Lost 10 | . . . 10 Power 1 | . . . 1 Propulsion 4 | . . . 4 Utility 3 | . . . 3 Weapon 2 | . . . 2 Highest Loss Streak 6 | . . . 6 Average Slot Usage (%) 92 | . 87 99 77 Engine 9 | . 12 10 5 Leg 21 | . 25 27 . Hover 13 | . . 12 25 Device 9 | . . 9 18 Storage 9 | . 12 10 8 Processor 6 | . . 7 8 Protection 3 | . 12 2 . Energy Gun 17 | . 25 19 5 Energy Cannon 1 | . . . 3 Naked Turns . | . . . . Heaviest Build 33 | 15 16 31 33 Greatest Support 43 | 20 20 43 32 Greatest Overweight (x) 9 | . . 2 9 Average Overweight (x) . | . . . 1 Largest Inventory Capacity 10 | 8 10 10 10 Average Capacity 9 | 5 8 9 10 Most Carried 10 | 4 8 10 9 Average Carried 7 | 2 5 8 7 Final Capacity 10 | 8 8 10 10 Final Carried 10 | 4 8 10 7 Class Distribution -------------------- 100% | Hacker-Mutant Dominant Class ---------------- Hacker-Mutant | -10/Materials Hacker-Mutant | -9/Materials Hacker-Mutant | -8/Materials Resources | -11 -10 -9 -8 ----------- Run | Scr Mat Mat Mat Matter Collected 665 | 280 30 320 35 Remotely . | . . . . Salvage Created 685 | 60 32 355 238 Parts 34 | 2 4 21 7 Haulers Intercepted . | . . . . Recyclers Shooed . | . . . . Parts Field Recycled . | . . . . Retrieved Matter . | . . . . Parts Self-Destructed . | . . . . Prevented . | . . . . Kills | -11 -10 -9 -8 ------- Run | Scr Mat Mat Mat Combat Hostiles Destroyed 13 | . 2 7 4 Guns 10 | . 2 6 2 Cannons 2 | . . . 2 Classes Destroyed 7 | 1 1 4 1 Worker 1 | . . . 1 Recycler 1 | 1 . . . Operator 1 | . . 1 . Watcher 1 | . . 1 . Swarmer 2 | . 2 . . Grunt 7 | . . 3 4 Sentry 4 | . . 4 . Best Kill Streak 4 | 1 2 4 3 Combat Bots Only 4 | . 2 4 3 Max Kills in Single Turn 1 | 1 1 1 1 Gunslinging . | . . . . Exploded . | . . . . Melee . | . . . . Uniques/NPCs Destroyed . | . . . . Combat | -11 -10 -9 -8 -------- Run | Scr Mat Mat Mat Damage Taken 1384 | . 54 155 1175 Core 570 | . 16 . 554 Absorbed by Shields . | . . . . Core Remaining (%) 97 | 100 93 100 . Volleys Fired 51 | 3 3 26 19 Largest 2 | 2 2 2 2 Hottest 124 | 80 100 112 124 Shots Fired 96 | 4 6 52 34 Gun 81 | 4 6 52 19 Cannon 15 | . . . 15 Launcher . | . . . . Special . | . . . . Kinetic . | . . . . Thermal 95 | 3 6 52 34 Explosive . | . . . . Electromagnetic 1 | 1 . . . Robot Hit Streak 34 | 3 8 34 15 Robot Miss Streak 1 | . . 1 1 Penetration Max . | . . . . Secondary Targets . | . . . . Shots Hit Robots 85 | 3 5 48 29 Core Hits 31 | 2 2 16 11 Critical Hits 1 | . . . 1 Critical Kills . | . . . . Critical Parts Destroyed 1 | . . . 1 Melee Attacks . | . . . . Impact . | . . . . Slashing . | . . . . Piercing . | . . . . Sneak Attacks . | . . . . Combat Hostiles . | . . . . Follow-up Attacks . | . . . . Damage Inflicted 1284 | 34 62 621 567 Guns 934 | 34 62 621 217 Cannons 287 | . . . 287 Explosions . | . . . . Melee . | . . . . Ramming 63 | . . . 63 Kinetic . | . . . . Thermal 1221 | 34 62 621 504 Explosive . | . . . . Electromagnetic . | . . . . Impact . | . . . . Slashing . | . . . . Piercing . | . . . . Highest Corruption 1 | . . . 1 Average Corruption 1 | . . . 1 Corruption Purged . | . . . . Effects 1 | . . . 1 Message Errors 1 | . . . 1 Overload Shots . | . . . . Overflow Damage 18 | . . . 18 Projectiles . | . . . . Explosions . | . . . . Melee 18 | . . . 18 Knockbacks . | . . . . Impact . | . . . . Kinetic . | . . . . Secondary . | . . . . Self-Inflicted Damage 31 | . . . 31 Shots . | . . . . Rammed 2 | . . . 2 Targets Rammed 3 | . . 1 2 Kicked 1 | . . 1 . Crushed . | . . . . Highest Temperature 552 | 18 117 357 552 Average Temperature 155 | 12 60 117 247 Received Heat Transfer 720 | . 33 102 585 Effects 12 | . . 1 11 Shutdowns 2 | . . . 2 Energy Bleed 5 | . . . 5 Matter Decay 1 | . . 1 . Damage (minor) 3 | . . . 3 Damage (core) 1 | . . . 1 Siege Activations . | . . . . Robots Corrupted . | . . . . Combat Hostiles . | . . . . Parts Fried . | . . . . Impact Corruptions 1 | . . . 1 Robots Melted 1 | . . 1 . Combat Hostiles 1 | . . 1 . Parts Melted 13 | . 2 7 4 Heat Transferred 3072 | 75 185 1739 1073 Parts Sabotaged . | . . . . Parts Stolen . | . . . . Parts Stripped . | . . . . Power Chain Reactions . | . . . . Missiles Intercepted . | . . . . Alert | -11 -10 -9 -8 ------- Run | Scr Mat Mat Mat Peak Influence 181 | 5 82 181 117 Initial 24 | . 2 24 22 Average 51 | 2 39 59 47 Maximum Alert Level . | . . . . Low Security (%) 100 | 100 100 100 100 Level 1 . | . . . . Level 2 . | . . . . Level 3 . | . . . . Level 4 . | . . . . Level 5 . | . . . . High Security . | . . . . Max Security . | . . . . Squads Dispatched 7 | . . 3 4 Investigation 2 | . . 1 1 Extermination . | . . . . Reinforcement 5 | . . 2 3 Assault . | . . . . Garrison . | . . . . Intercept . | . . . . Construction Impeded . | . . . . Haulers Reinforced . | . . . . Stealth | -11 -10 -9 -8 --------- Run | Scr Mat Mat Mat Distress Signals 3 | . 1 1 1 Communications Jammed . | . . . . Distress Signals . | . . . . Times Spotted 39 | . 7 11 21 Peak Tracking Total 8 | . 3 3 8 Tactical Retreats 1 | . . . 1 Traps | -11 -10 -9 -8 ------- Run | Scr Mat Mat Mat Traps Triggered 2 | . . 2 . Indirectly . | . . . . Trap Hack Attempts . | . . . . Triggered . | . . . . Disarmed . | . . . . Reprogrammed 4 | . 4 . . Reused . | . . . . Traps Extracted . | . . . . Installed . | . . . . Triggered . | . . . . Machines | -11 -10 -9 -8 ---------- Run | Scr Mat Mat Mat Machines Disabled 1 | . . . 1 Max in Single Turn 1 | . . . 1 Machines Sabotaged . | . . . . Garrisons Compromised . | . . . . Overloaded Fab Kills . | . . . . Fab Network Shutdowns . | . . . . Hacking | -11 -10 -9 -8 --------- Run | Scr Mat Mat Mat Machines Accessed 15 | . 4 6 5 Terminals 12 | . 4 5 3 Fabricators . | . . . . Repair Stations 1 | . . 1 . Recycling Units 1 | . . . 1 Scanalyzers 1 | . . . 1 Garrison Access . | . . . . Total Hacks 54 | . 11 24 19 Successful 49 | . 8 24 17 Failed 5 | . 3 . 2 Catastrophic 1 | . 1 . . Database Lockouts . | . . . . Manual . | . . . . Terminals 45 | . 11 19 15 Fabricators . | . . . . Repair Stations 5 | . . 5 . Recycling Units 1 | . . . 1 Scanalyzers 3 | . . . 3 Garrison Access . | . . . . Terminal Hacks 40 | . 8 19 13 Record 16 | . 5 8 3 Robot Analysis 2 | . . . 2 Prototype ID Bank 3 | . 1 1 1 Emergency Access Points 2 | . 1 . 1 Alert Level 3 | . . 2 1 Unreport Threat 1 | . . . 1 Locate Traps 1 | . . . 1 Reprogram Traps 1 | . 1 . . Dispatch Records 4 | . . 2 2 Recall Investigation 1 | . . 1 . Recall Reinforcements 3 | . . 2 1 Hauler Manifests 1 | . . 1 . Registered Components 1 | . . 1 . Registered Prototypes 1 | . . 1 . Fabricator Hacks . | . . . . Repair Station Hacks 5 | . . 5 . Scan Component 3 | . . 3 . Repair 2 | . . 2 . Recycling Unit Hacks 1 | . . . 1 Report Inventory 1 | . . . 1 Scanalyzer 3 | . . . 3 Insert Component 1 | . . . 1 Analyze 2 | . . . 2 Garrison Access Hacks . | . . . . Unauthorized Hacks . | . . . . Terminals . | . . . . Fabricators . | . . . . Repair Stations . | . . . . Recycling Units . | . . . . Scanalyzers . | . . . . Garrison Access . | . . . . Data Cores Recovered 1 | . . 1 . Used . | . . . . Hacking Detections 11 | . 4 4 3 Full Trace Events 3 | . . 1 2 Feedback Events . | . . . . Feedback Blocked . | . . . . Robot Schematics Acquired . | . . . . Robots Built . | . . . . Matter . | . . . . Time . | . . . . Total Robot Build Rating . | . . . . Part Schematics Acquired . | . . . . Parts Built . | . . . . Matter . | . . . . Time . | . . . . Total Part Build Rating . | . . . . Parts Repaired 2 | . . 2 . Time 26 | . . 26 . Parts Recycled . | . . . . Recycled Matter . | . . . . Retrieved Matter . | . . . . Retrieved Components . | . . . . Parts Scanalyzed 1 | . . . 1 Part Schematics Acquired . | . . . . Parts Damaged . | . . . . Bothacking | -11 -10 -9 -8 ------------ Run | Scr Mat Mat Mat Used RIF Installer . | . . . . Robots Hacked . | . . . . Non-combat . | . . . . Combat . | . . . . Robot Hacks Applied . | . . . . Relay Couplers Released . | . . . . Robots Rewired . | . . . . Allies Hacked . | . . . . Hacks Repelled . | . . . . Allies | -11 -10 -9 -8 -------- Run | Scr Mat Mat Mat Total Allies . | . . . . Largest Group . | . . . . Highest-Rated Group . | . . . . Highest-Rated Ally . | . . . . Total Orders . | . . . . Ally Attacks . | . . . . Total Damage . | . . . . Kills . | . . . . Allies Corrupted . | . . . . Allies Melted . | . . . . Intel | -11 -10 -9 -8 ------- Run | Scr Mat Mat Mat Robot Analysis Total 2 | . . . 2 Derelict Logs Recovered . | . . . . Drone Launches . | . . . . Drone Recoveries . | . . . . Exploration | -11 -10 -9 -8 ------------- Run | Scr Mat Mat Mat Turns Passed 2220 | 79 361 1332 448 Spaces Moved 1506 | 52 264 927 263 Core 54 | 19 . . 35 Treads . | . . . . Legs 689 | 33 264 392 . Wheels . | . . . . Hover 763 | . . 535 228 Flight . | . . . . Fastest Speed 48 | 50 120 48 48 Average Speed 91 | 94 120 78 106 Slowest Speed 500 | 120 120 196 500 Overloaded Moves . | . . . . Propulsion Burnouts . | . . . . Robots Hopped . | . . . . Cave-ins Triggered . | . . . . Exploration Rate (%) 36 | 4 40 67 35 Regions Visited 3 Branch Regions . Pre-discovered Areas . | . . . . Known Exits Taken 3 | 1 1 1 . Unknown Exits Taken . | . . . . Scrap Searched . | . . . . Spaces Dug . | . . . . Terrain Destroyed . | . . . . Melee . | . . . . Projectile . | . . . . AOE . | . . . . Terrain Rammed . | . . . . Walls Destroyed . | . . . . Machines Disabled . | . . . . Actions | -11 -10 -9 -8 --------- Run | Scr Mat Mat Mat Total 2258 | 77 303 1481 397 Wait 576 | 5 18 454 99 Move 1503 | 51 263 926 263 Hop . | . . . . Pick Up 42 | 10 8 21 3 Fast Attach 9 | 1 . 8 . Attach 16 | 6 3 4 3 Detach 2 | . 1 . 1 Swap 21 | 1 3 14 3 Drop 35 | . 4 27 4 Fire 51 | 3 3 26 19 Melee . | . . . . Ram 2 | . . . 2 Kick 1 | . . 1 . Crush . | . . . . Escape Stasis . | . . . . Rewire . | . . . . Trap . | . . . . Miscellaneous . | . . . . Route ------- -11/Scrapyard -10/Materials (discovered 2 exits: *Mat / *Min) -9/Materials (discovered 4 exits: *Mat x2 / *Min x2) -8/Materials History --------- Turn | Location | Event 13 | -11/Scrapyard | Identified exit to Materials 13 | -11/Scrapyard | Discovered exit to Materials (range 14) 80 | -11/Scrapyard | Entered Materials 80 | -10/Materials | Evolved 1 slot: Propulsion x1 149 | -10/Materials | Identified exit to Mines 149 | -10/Materials | Discovered exit to Mines (range 8) 319 | -10/Materials | Build established: Hacker-Mutant 326 | -10/Materials | Identified exit to Materials 326 | -10/Materials | Discovered exit to Materials (range 12) 441 | -10/Materials | Entered another Materials area 441 | -9/Materials | Evolved 2 slots: Propulsion x1, Utility x1 917 | -9/Materials | Repaired Med. Laser 937 | -9/Materials | Repaired Aluminum Leg 1025 | -9/Materials | Identified exit to Mines 1025 | -9/Materials | Discovered exit to Mines (range 12) 1382 | -9/Materials | Identified exit to Materials 1382 | -9/Materials | Discovered exit to Materials (range 18) 1470 | -9/Materials | Discovered exit to Mines (range 7) 1516 | -9/Materials | Discovered exit to Materials (range 11) 1773 | -9/Materials | Entered another Materials area 1773 | -8/Materials | Evolved 2 slots: Utility x2 2128 | -8/Materials | Lost 3 parts (1n1u1w) 2180 | -8/Materials | Core integrity fell below 50% 2209 | -8/Materials | Core integrity fell below 20% 2221 | -8/Materials | Destroyed by L-31 Rogue with Katana Last Messages --------------- 02119_ O-16 Technician: "IFF HANDSHAKE FAILED. SECURING TERMINAL." 02119_ O-16 Technician uses terminal to summon reinforcements. 02119_ ALERT: Hostiles spotted, dispatching reinforcements to Terminal M006. 02119_ O-16 Technician locks terminal. 02130_ Imp. Hover Unit destroyed. 02140_ S-10 Pest destroyed. 02141_ K-01 Serf collects debris. 02144_ Imp. Hover Unit destroyed. 02146_ ALERT: Hostiles spotted, dispatching reinforcements to Terminal M007. 02156_ Q,OUSV4,J2OY4VGKK9JYIQXQYNI% 02174_ Structural Scanner destroyed. 02174_ Nuclear Core destroyed. 02180_ S-10 Pest destroyed. 02187_ K-01 Serf collects debris. 02202_ Adv. Heat Sink destroyed. 02215_ U-05 Engineer builds a Door. 02217_ S-10 Pest destroyed. [Achievement: First Step to Greatness] Map ----- +----------------------------------------------------+ | ?????????????????????????????????????????????????? | | ?????????????????????????????????????????????????? | | ?????????????????????????????????????????????????? | | ?????????????????????????????????????????????????? | | ?????????????????????????????????????????????????? | | ?????????????????????????????????????????????????? | | ? ?????????????????????????????????????????????? | | ? ?????????????????????????????????????????????? | | ? ?????????????????????????????????????????????? | | ? ?????????????????????????????????????????????? | | # #????????????????????????????????????????????? | | # #????????????????????????????????????????????? | | # #????????????????????????????????????????????? | | # #????????????????????????????????????????????? | | # #????????????????????????????????????????????? | | # #????????????????????????????????????????????? | | # ?????????????????????????????????????????????? | | ???????????########??????????????????????????? | | ???????????# ! ! #??????????????????????????? | | ???????????+ ???????????????????????????? | | ? ???????????? """ ???????????????????????????? | | ? ???????????? """ ???????????????????????????? | | ## #????????????? """????????????????????????????? | | # #?????????????? ????????????????????????????? | | # ##########??####+######+##########????????????? | | #[ #??# u Yl@ #????????? | | /%* #??# g u g +????????? | | # #??# =Y= #????????? | | # #### #??# ##############+### #????????? | | # #??# #??# #?????????????????????????????? | | # #??# #??# #?????????????????????????????? | | ## #??# #### +?????????????????????????????? | | #??# =%[ #?????????????????????????????? | | #??# = #?????????????????????????????? | | #??# #?????????????????????????????? | | ###+##??######## #?????????????????????????????? | | ???????????????# #?????????????????????????????? | | ???????????????# #?????????????????????????????? | | ???????????????# #?????????????????????????????? | | ???????????????# ?????????????????????????????? | | ???????????????# ????????????????????????????? | | ???????????????# ???????????????????????????? | | #??????# ####??????????????????????????? | | #??????# #?????????????????????????????? | | ######?????????# #?????????????????????????????? | | ???????????????# +?????????????????????????????? | | ???????????????? #?????????????????????????????? | | ???????????????? #?????????????????????????????? | | ???????????????? #?????????????????????????????? | | ???????????????? * ?????????????????????????????? | +----------------------------------------------------+ Best States ------------- Heat Dissipation 41 Energy Generation 14 Energy Capacity 265 Matter Stores 300 Matter Capacity 300 Sight Range 20 Robot Scan Range 10 Terrain Scan Density 10 Resistance: KI 35 Resistance: TH 35 Resistance: EX 35 Resistance: EM 35 Resistance: I 35 Resistance: S 35 Resistance: P 35 Power Shielding 33 Evasion (%) 55 Offensive Hacking 20 Item Schematics ----------------- None Robot Schematics ------------------ None Fabricated ------------ Nothing Alien Tech Used ----------------- None Achievements -------------- First Step to Greatness GoHome() It's Just You Challenges ------------ None Game ------ Seed MolecularHardcellAutohacker Manual? 0 Play Time 01:04:33 Cumulative 35.3 hours Start 2021.09.12 @ 21:59:05 End 2021.09.12 @ 23:12:18 Sessions 1 Manual Loads 0 Difficulty Explorer Special Mode None Game No. 39 Rogue 37 Adventurer 0 Explorer 2 Win Type - Total 0 Types 0/0/0/0/0/0/0/0/0 Lore% 16 Gallery% 26 Achievement% 9 Wizard Run 0 Options --------- ASCII 0 Keyboard 0 Movement Mouse Keybinds 0 Fullscreen 1 Font 18/SmallcapsGlow Map View 76x50 Tactical HUD 1 Map Filters NONE Filters NONE Steam 1 RUN: d6811f2d-fe15-4242-97d4-61b7f01ac2e7